bitfinex-derivatives/quotes_BTCF0:USTF0_20251011
["timestamp","ask_amount","ask_price","bid_price","bid_amount"]
[1760218810766,0.01276,110880.0,110870.0,1.00653414]
[1760218816970,0.01276,110880.0,110870.0,0.51495405]
[1760218817166,0.43446,110880.0,110870.0,0.91643774]
[1760218817366,0.43446,110880.0,110870.0,1.00653414]
[1760218817570,0.43446,110880.0,110870.0,0.94247649]
[1760218819275,0.5245483,110880.0,110870.0,0.3608]
[1760218819570,0.5245483,110880.0,110860.0,0.42485765]
[1760218819571,0.03439,110870.0,110860.0,0.3608]
[1760218819772,0.03439,110870.0,110860.0,0.42485765]
[1760218820273,0.03439,110870.0,110860.0,0.4509046]
[1760218820674,0.03439,110870.0,110860.0,0.94248469]
[1760218831284,0.5244866,110870.0,110860.0,0.85238009]
[1760218831987,0.5244866,110870.0,110860.0,0.49158009]
[1760218833285,0.1270048,110860.0,110850.0,0.94248779]
[1760218834884,0.1270048,110860.0,110850.0,0.94348779]
[1760218835190,0.1270048,110860.0,110850.0,0.94448779]
[1760218836594,0.1270048,110860.0,110850.0,0.4529077]
[1760218836788,0.1270048,110860.0,110850.0,0.94448779]
[1760218842398,0.1270048,110860.0,110850.0,0.85438009]
[1760218849109,0.1270048,110860.0,110850.0,0.3628]
[1760218849408,0.1270048,110860.0,110850.0,0.85438009]
[1760218853509,0.1270048,110860.0,110850.0,0.94449289]
[1760218855307,0.1270048,110860.0,110850.0,0.4529128]
[1760218855511,0.1270048,110860.0,110850.0,0.94449289]
[1760218855810,0.1270048,110860.0,110850.0,0.3628]
[1760218856012,0.1270048,110860.0,110850.0,0.85438009]
[1760218857209,0.1270048,110860.0,110850.0,0.3628]
[1760218857411,0.1270048,110860.0,110850.0,0.85438009]
[1760218857611,0.1270048,110860.0,110850.0,0.3628]
[1760218857811,0.1270048,110860.0,110850.0,0.85438009]
[1760218865517,0.1270048,110860.0,110850.0,1.46928946]
[1760218865719,0.1270048,110860.0,110850.0,0.91604473]
[1760218866016,0.1270048,110860.0,110850.0,0.3628]
[1760218866216,0.1270048,110860.0,110850.0,1.46928946]
[1760218869019,0.1036948,110860.0,110850.0,1.55940256]
[1760218869219,0.1036948,110860.0,110850.0,1.46928946]
[1760218870627,0.1265948,110860.0,110850.0,1.46928946]
[1760218870821,0.1265948,110860.0,110850.0,1.10848946]
[1760218871023,0.1265948,110860.0,110850.0,1.46928946]
[1760218871820,0.1265948,110860.0,110850.0,1.10848946]
[1760218872026,0.1265948,110860.0,110850.0,1.46928946]
[1760218875725,0.1036948,110860.0,110850.0,0.91604473]
[1760218876029,0.1265948,110860.0,110850.0,1.46928946]
[1760218883730,0.1265948,110860.0,110850.0,1.86928946]
[1760218897745,0.1265948,110860.0,110850.0,1.46928946]
[1760218906959,0.1265948,110860.0,110850.0,0.3628]
[1760218907158,0.1265948,110860.0,110850.0,1.46928946]
[1760218908156,0.1265948,110860.0,110850.0,0.3628]
[1760218908357,0.1265948,110860.0,110850.0,1.46928946]
[1760218911865,0.1265948,110860.0,110850.0,0.91604473]
[1760218912061,0.1265948,110860.0,110850.0,1.46928946]
[1760218913665,0.1265948,110860.0,110850.0,1.10848946]
[1760218913863,0.1265948,110860.0,110850.0,1.46928946]
[1760218916860,0.1265948,110860.0,110850.0,0.3628]
[1760218917061,0.1265948,110860.0,110850.0,1.46928946]
[1760218918067,0.1265948,110860.0,110850.0,0.91604473]
[1760218918365,0.1265948,110860.0,110850.0,1.46928946]
[1760218920265,0.1265948,110860.0,110850.0,1.10848946]
[1760218920465,0.1265948,110860.0,110850.0,1.46928946]
[1760218925566,0.1265948,110860.0,110850.0,0.8545898]
[1760218927473,0.1265948,110860.0,110850.0,0.9447041]
[1760218930772,0.1265948,110860.0,110850.0,1.2047041]
[1760218931666,0.1036948,110860.0,110850.0,1.2047041]
[1760218936478,0.1259648,110860.0,110850.0,1.2047041]
[1760218939373,0.1259648,110860.0,110850.0,0.7129143]
[1760218939678,0.1259648,110860.0,110850.0,1.2047041]
[1760218947880,0.1036948,110860.0,110850.0,1.2047041]
[1760218948480,0.1259648,110860.0,110850.0,1.2047041]
[1760218949579,0.1259648,110860.0,110850.0,1.1145898]
[1760218955079,0.1259648,110860.0,110850.0,1.204704]
[1760218957486,0.1259648,110860.0,110850.0,0.7129142]
[1760218957686,0.1259648,110860.0,110850.0,1.204704]
[1760218958385,0.1259648,110860.0,110850.0,0.7129142]
[1760218958588,0.1259648,110860.0,110850.0,1.204704]
[1760218967694,0.5259648,110860.0,110850.0,0.7129142]
[1760218968794,0.5259648,110860.0,110850.0,1.204704]
[1760218970301,0.5259648,110860.0,110850.0,0.6228]
[1760218970498,0.5259648,110860.0,110850.0,1.1145898]
[1760218971601,0.5259648,110860.0,110850.0,0.6228]
[1760218972100,0.5259648,110860.0,110850.0,0.7129155]
[1760218972302,0.5259648,110860.0,110850.0,1.2047053]
[1760218987508,1.07927583,110860.0,110850.0,1.26622653]
[1760218987708,0.5259648,110860.0,110850.0,1.26622653]
[1760218988009,1.07927583,110860.0,110850.0,1.26622653]
[1760218988608,0.5259648,110860.0,110850.0,1.26622653]
[1760218988809,1.07927583,110860.0,110850.0,1.26622653]
[1760218989610,0.5259648,110860.0,110850.0,1.26622653]
[1760218991209,1.07927583,110860.0,110850.0,1.26622653]
[1760218992006,1.07927583,110860.0,110850.0,0.81531103]
[1760218992412,1.04007583,110860.0,110850.0,0.81531103]
[1760218994513,0.67927583,110860.0,110850.0,0.81531103]
[1760218995712,0.67927583,110860.0,110850.0,1.17611103]
[1760218995912,0.67927583,110860.0,110850.0,0.81531103]
[1760218996313,0.67927583,110860.0,110850.0,1.17611103]
[1760218999615,0.67927583,110860.0,110850.0,0.81531103]
[1760218999815,0.67927583,110860.0,110850.0,1.17611103]
[1760219001818,0.67927583,110860.0,110850.0,0.81531103]
[1760219002119,0.67927583,110860.0,110850.0,1.17611103]
[1760219004816,0.67927583,110860.0,110850.0,0.262]
[1760219004817,1.44007583,110860.0,110850.0,0.262]
[1760219005018,1.4643329,110860.0,110850.0,0.262]
[1760219007118,2.01764393,110860.0,110850.0,0.262]
[1760219007320,1.4643329,110860.0,110850.0,0.262]
[1760219008516,1.53757518,110860.0,110850.0,0.261]
[1760219009019,0.1261597,110840.0,110830.0,0.39]
[1760219009222,0.1261678,110830.0,110820.0,0.0090708]
[1760219009421,0.1261759,110820.0,110810.0,0.91411103]
[1760219009624,0.67948693,110820.0,110810.0,1.14411103]
[1760219010519,0.67948693,110820.0,110810.0,0.78331103]
[1760219011126,0.67948693,110820.0,110810.0,0.23]
[1760219011425,1.04028693,110820.0,110810.0,0.23]
[1760219011820,1.59359796,110820.0,110810.0,0.23]
[1760219012225,1.664078,110820.0,110810.0,0.231]
[1760219012527,1.51076697,110820.0,110810.0,0.232]
[1760219012728,2.064078,110820.0,110810.0,0.232]
[1760219013027,1.51076697,110820.0,110810.0,0.232]
[1760219014225,2.064078,110820.0,110810.0,0.232]
[1760219014432,0.95745594,110820.0,110810.0,0.232]
[1760219014725,2.064078,110820.0,110810.0,0.232]
[1760219014926,1.99359796,110820.0,110810.0,0.232]
[1760219015331,2.06607543,110820.0,110810.0,0.232]
[1760219016132,0.95945337,110820.0,110810.0,0.232]
[1760219016333,2.06607543,110820.0,110810.0,0.232]
[1760219020438,2.09005457,110820.0,110810.0,0.232]
[1760219022340,1.69005457,110820.0,110810.0,0.232]
[1760219022535,0.1265222,110800.0,110790.0,0.3301137]
[1760219022738,0.1265222,110800.0,110790.0,0.1001137]
[1760219022739,1.04063323,110800.0,110790.0,0.1001137]
[1760219023135,1.40143323,110800.0,110790.0,0.1001137]
[1760219024137,0.1246485,110780.0,110770.0,0.34]
[1760219024435,0.1246485,110780.0,110760.0,0.9231655]
[1760219024436,0.1246566,110770.0,110760.0,0.91411103]
[1760219024638,0.67796763,110770.0,110760.0,0.82331103]
[1760219025033,0.67796763,110770.0,110760.0,0.27]
[1760219025232,0.67803677,110770.0,110760.0,0.27]
[1760219025645,1.9921478,110770.0,110760.0,0.05532149]
[1760219025837,1.9921478,110770.0,110760.0,0.002]
[1760219026037,1.9921478,110770.0,110760.0,0.252]
[1760219026239,2.0013553,110770.0,110760.0,0.2253045]
[1760219026636,2.02531405,110770.0,110760.0,0.2253045]
[1760219026832,0.1246729,110750.0,110740.0,0.24]
[1760219027037,0.1246892,110730.0,110720.0,1.13729103]
[1760219027238,0.67800023,110730.0,110720.0,0.24318]
[1760219027541,0.67800023,110730.0,110720.0,0.79649103]
[1760219027542,1.03880023,110730.0,110720.0,0.79649103]
[1760219027745,1.03880023,110730.0,110720.0,0.24318]
[1760219028042,0.67800023,110730.0,110720.0,0.24318]
[1760219028240,1.03880023,110730.0,110720.0,0.24318]
[1760219029046,1.03880023,110730.0,110720.0,0.24418]
[1760219029440,1.03880023,110730.0,110720.0,1.20874103]
[1760219030640,0.1034745,110740.0,110720.0,1.65976833]
[1760219030848,0.67799553,110740.0,110730.0,0.57649103]
[1760219031040,0.1246845,110740.0,110730.0,0.80649103]
[1760219031241,0.67799553,110740.0,110730.0,0.80649103]
[1760219032242,0.0902145,110740.0,110730.0,1.20649103]
[1760219032746,0.64352553,110740.0,110730.0,1.20749103]
[1760219033546,0.0902145,110740.0,110730.0,1.20749103]
[1760219033745,0.111421,110740.0,110730.0,1.20749103]
[1760219034246,0.090211,110740.0,110730.0,1.20749103]
[1760219034643,0.111421,110740.0,110730.0,0.65418]
[1760219034847,0.111421,110740.0,110730.0,1.20749103]
[1760219035048,0.090211,110740.0,110730.0,1.20749103]
[1760219035538,0.090211,110740.0,110730.0,1.20649103]
[1760219039646,0.090211,110740.0,110730.0,0.65318]
[1760219039851,0.124681,110740.0,110730.0,1.20649103]
[1760219040453,0.111421,110740.0,110730.0,1.20649103]
[1760219041053,0.124681,110740.0,110730.0,1.20649103]
[1760219041552,0.111421,110740.0,110730.0,1.20649103]
[1760219041756,0.124611,110740.0,110730.0,1.20649103]
[1760219042656,0.67792203,110740.0,110730.0,1.20649103]
[1760219043854,1.07792203,110740.0,110730.0,0.25318]
[1760219044057,2.11629092,110740.0,110730.0,0.23]
[1760219044761,1.00966886,110740.0,110730.0,0.23]
[1760219044956,0.90975037,110740.0,110730.0,0.23]
[1760219045157,1.4630614,110740.0,110730.0,0.23]
[1760219049463,1.40288817,110740.0,110730.0,0.23]
[1760219050166,1.40288817,110740.0,110730.0,0.195]
[1760219051361,1.5350812,110740.0,110730.0,0.195]
[1760219051761,1.5370812,110740.0,110730.0,0.195]
[1760219052258,1.53714128,110740.0,110730.0,0.195]
[1760219052456,1.53714128,110740.0,110730.0,0.1418928]
[1760219052457,1.53814128,110740.0,110730.0,0.1418928]
[1760219052660,1.55404534,110740.0,110730.0,0.0083062]
[1760219052861,1.50588834,110740.0,110730.0,0.0083062]
[1760219053167,1.50588834,110740.0,110730.0,1e-07]
[1760219054259,1.57009767,110740.0,110730.0,1e-07]
[1760219055866,1.93089767,110740.0,110730.0,1e-07]
[1760219056664,0.1208873,110720.0,110710.0,0.18011208]
[1760219056868,1.03164574,110720.0,110710.0,0.23011208]
[1760219057068,1.03176181,110720.0,110710.0,0.23011208]
[1760219057871,1.03276181,110720.0,110710.0,0.23011208]
[1760219058369,1.04198509,110720.0,110710.0,0.23011208]
[1760219059771,1.14190358,110720.0,110710.0,0.23011208]
[1760219060367,1.19047409,110720.0,110710.0,0.23011208]
[1760219061067,0.69733629,110720.0,110710.0,0.23011208]
[1760219061272,1.19047409,110720.0,110710.0,0.23011208]
[1760219063274,1.4513556,110720.0,110710.0,0.23011208]
[1760219063475,1.41897526,110720.0,110710.0,0.23011208]
[1760219063675,1.91211306,110720.0,110710.0,0.23011208]
[1760219063870,2.31211306,110720.0,110710.0,0.20488038]
[1760219064069,0.0902436,110700.0,110690.0,0.0135]
[1760219064270,0.96863684,110700.0,110690.0,0.2635]
[1760219064473,1.04953139,110700.0,110690.0,0.2635]
[1760219064676,1.01717357,110700.0,110690.0,0.2635]
[1760219064875,1.08844171,110700.0,110690.0,0.2635]
[1760219065076,1.12080151,110700.0,110690.0,0.2635]
[1760219065375,1.48844171,110700.0,110690.0,0.01]
[1760219065575,0.0902518,110690.0,110680.0,0.0135]
[1760219065776,1.00099587,110690.0,110680.0,0.2735]
[1760219065971,2.63282693,110690.0,110680.0,0.0135]
[1760219066178,0.0902599,110680.0,110670.0,0.01125]
[1760219066375,1.51039203,110680.0,110670.0,0.06125]
[1760219067072,1.94271507,110680.0,110670.0,0.05]
[1760219067276,1.91039203,110680.0,110670.0,0.0272274]
[1760219067472,1.91039203,110680.0,110660.0,0.0135]
[1760219067677,0.97653276,110670.0,110660.0,0.2235]
[1760219067879,1.00110491,110670.0,110660.0,0.2235]
[1760219068275,1.40110491,110670.0,110660.0,0.2235]
[1760219069182,1.5010234,110670.0,110660.0,0.2235]
[1760219069584,1.0078856,110670.0,110660.0,0.2235]
[1760219069783,1.5010234,110670.0,110660.0,0.2235]
[1760219070082,1.1020234,110670.0,110660.0,0.2235]
[1760219070284,1.1030234,110670.0,110660.0,0.2235]
[1760219070984,1.11197577,110670.0,110660.0,0.2235]
[1760219071486,1.07964891,110670.0,110660.0,0.2235]
[1760219072685,0.57755874,110670.0,110660.0,0.64611]
[1760219072880,0.11684025,110670.0,110660.0,0.64611]
[1760219073078,0.11684025,110670.0,110660.0,1.1392478]
[1760219073381,0.09238481,110670.0,110660.0,1.1392478]
[1760219073574,0.09238481,110670.0,110660.0,0.64611]
[1760219074677,0.00111671,110670.0,110660.0,1.229524]
[1760219075774,0.00011671,110670.0,110660.0,1.229524]
[1760219075977,0.52223318,110700.0,110690.0,0.03531]
[1760219076177,0.11394629,110700.0,110690.0,0.26531]
[1760219076580,0.11394629,110700.0,110690.0,0.36447629]
[1760219076783,0.11394629,110700.0,110690.0,0.3555618]
[1760219077083,0.02378711,110700.0,110690.0,1.2486996]
[1760219077882,0.02478711,110700.0,110690.0,1.2486996]
[1760219078184,0.02478711,110700.0,110690.0,0.7555618]
[1760219078585,0.00108962,110700.0,110690.0,1.6094996]
[1760219079083,0.00108962,110700.0,110690.0,1.61873133]
[1760219079688,0.00208962,110700.0,110690.0,1.61873133]
[1760219081885,0.00208962,110700.0,110690.0,1.12559353]
[1760219082087,0.09233322,110700.0,110690.0,1.61873133]
[1760219082289,0.09233322,110700.0,110690.0,1.21873133]
[1760219082988,0.00208962,110700.0,110690.0,1.21873133]
[1760219083789,0.00108962,110700.0,110690.0,0.72559353]
[1760219083986,0.00108962,110700.0,110690.0,1.21873133]
[1760219084288,8.962e-05,110700.0,110690.0,1.21873133]
[1760219084687,0.09033322,110700.0,110690.0,1.21873133]
[1760219087689,8.962e-05,110700.0,110690.0,1.21873133]
[1760219088794,8.962e-05,110700.0,110690.0,1.61873133]
[1760219089294,0.09033322,110700.0,110690.0,1.61873133]
[1760219089492,8.962e-05,110700.0,110690.0,1.61873133]
[1760219089894,0.4510353,110720.0,110710.0,0.03463]
[1760219090094,0.47475759,110720.0,110710.0,0.27463]
[1760219090994,0.47575759,110720.0,110710.0,0.27463]
[1760219091396,0.47675759,110720.0,110710.0,0.27463]
[1760219092302,0.002,110720.0,110710.0,0.3648655]
[1760219092594,0.002,110720.0,110710.0,1.6188033]
[1760219095891,0.4510063,110750.0,110730.0,0.1248492]
[1760219096097,0.4510063,110750.0,110740.0,0.03463]
[1760219096399,0.4510063,110750.0,110740.0,0.29463]
[1760219097099,0.4530063,110750.0,110740.0,0.29463]
[1760219098000,0.52739249,110750.0,110740.0,0.29463]
[1760219098299,0.4550063,110750.0,110740.0,0.29463]
[1760219101396,0.4791364,110750.0,110740.0,0.29463]
[1760219105803,0.1183364,110750.0,110740.0,0.29463]
[1760219106103,0.1183364,110750.0,110740.0,0.65543]
[1760219106308,0.1183364,110750.0,110740.0,0.7877678]
[1760219107109,0.4791364,110750.0,110740.0,0.7877678]
[1760219107406,0.4791364,110750.0,110740.0,0.29463]
[1760219109105,0.1183364,110750.0,110740.0,0.29463]
[1760219109309,0.4791364,110750.0,110740.0,0.29463]
[1760219111505,0.67279932,110750.0,110740.0,0.84909292]
[1760219111701,0.1183364,110750.0,110740.0,0.84909292]
[1760219111905,0.67279932,110750.0,110740.0,0.84909292]
[1760219112103,0.0281301,110750.0,110740.0,1.70010392]
[1760219112303,0.4509951,110760.0,110750.0,0.0902029]
[1760219112608,0.0901898,110770.0,110760.0,0.1263747]
[1760219112810,0.11436482,110770.0,110760.0,1.27163762]
[1760219113507,0.11436482,110770.0,110760.0,1.18144292]
[1760219114012,0.11436482,110770.0,110760.0,1.27163772]
[1760219114309,0.11536482,110770.0,110760.0,1.27163772]
[1760219114818,0.11536162,110770.0,110760.0,1.82610064]
[1760219115120,0.11536162,110770.0,110760.0,0.7171748]
[1760219115314,0.11536162,110770.0,110760.0,1.82610064]
[1760219115716,0.11536162,110770.0,110760.0,1.73590584]
[1760219115916,0.02517502,110770.0,110760.0,1.82610054]
[1760219116214,0.02517502,110770.0,110760.0,2.22610054]
[1760219116412,0.02517502,110770.0,110760.0,1.1171747]
[1760219116617,0.001,110770.0,110760.0,2.22610054]
[1760219117112,0.0901831,110780.0,110770.0,0.0901866]
[1760219117314,0.02415084,110780.0,110770.0,1.30162952]
[1760219117710,0.4509752,110790.0,110770.0,1.30162952]
[1760219117711,0.0901703,110790.0,110780.0,0.1263585]
[1760219117916,0.11431989,110790.0,110780.0,0.94082142]
[1760219119119,0.11431989,110790.0,110780.0,1.30162142]
[1760219119516,0.02414959,110790.0,110780.0,1.30162142]
[1760219119820,0.11431989,110790.0,110780.0,1.30162142]
[1760219120016,0.11531989,110790.0,110780.0,1.30162142]
[1760219120217,0.02614959,110790.0,110780.0,1.30162142]
[1760219120413,0.002,110790.0,110780.0,1.30162142]
[1760219120914,0.72545229,110830.0,110810.0,0.1263341]
[1760219121217,0.11426502,110830.0,110820.0,0.59064292]
[1760219121416,0.11426502,110830.0,110820.0,0.83064292]
[1760219121919,0.02412722,110830.0,110820.0,0.92078882]
[1760219122513,1.04662368,110850.0,110840.0,0.01354]
[1760219122514,0.65349632,110850.0,110840.0,0.01354]
[1760219122719,0.66867967,110850.0,110840.0,1.19144292]
[1760219122917,0.11421675,110850.0,110840.0,1.19144292]
[1760219123609,0.11521675,110850.0,110840.0,1.19144292]
[1760219123810,0.11621675,110850.0,110840.0,1.19144292]
[1760219125124,0.0921257,110850.0,110840.0,1.19144292]
[1760219125324,0.11615162,110850.0,110840.0,1.19144292]
[1760219125917,0.0921257,110850.0,110840.0,1.19144292]
[1760219127018,0.002,110850.0,110840.0,1.68157262]
[1760219127224,0.002,110850.0,110840.0,2.04237262]
[1760219128423,0.002,110850.0,110840.0,2.59683554]
[1760219128927,0.002,110850.0,110840.0,2.04237262]
[1760219129623,0.002,110850.0,110840.0,2.0642386]
[1760219134326,0.0901094,110870.0,110860.0,0.03593]
[1760219134526,0.0901094,110870.0,110860.0,0.63673]
[1760219135525,0.0921094,110870.0,110860.0,0.63673]
[1760219135724,0.0941094,110870.0,110860.0,0.63673]
[1760219139129,1.45558957,110870.0,110860.0,0.25316]
[1760219140229,1.55550806,110870.0,110860.0,0.25316]
[1760219142333,1.15550806,110870.0,110860.0,0.25316]
[1760219144027,1.15550806,110870.0,110860.0,0.27506]
[1760219144028,0.57917916,110870.0,110860.0,0.27506]
[1760219144228,0.47926067,110870.0,110860.0,0.27506]
[1760219144428,0.47826067,110870.0,110860.0,0.27506]
[1760219144934,0.47626067,110870.0,110860.0,0.27506]
[1760219145528,0.47726067,110870.0,110860.0,0.27506]
[1760219147340,0.47626067,110870.0,110860.0,0.27506]
[1760219147641,0.11546067,110870.0,110860.0,0.63586]
[1760219147837,0.11446067,110870.0,110860.0,0.63586]
[1760219149442,0.11446067,110870.0,110860.0,1.18909608]
[1760219150030,0.11446067,110870.0,110860.0,0.63586]
[1760219150235,0.11446067,110870.0,110860.0,1.18909608]
[1760219150840,0.11446067,110870.0,110860.0,0.82829608]
[1760219151039,0.11446067,110870.0,110860.0,1.18909608]
[1760219151239,0.14678753,110870.0,110860.0,1.18909608]
[1760219155143,0.19530774,110870.0,110860.0,1.18909608]
[1760219157345,0.14678753,110870.0,110860.0,1.18909608]
[1760219163351,0.02435127,110870.0,110860.0,1.67920938]
[1760219164644,0.02435127,110870.0,110860.0,2.04000938]
[1760219165654,0.02435127,110870.0,110860.0,2.59324546]
[1760219168653,0.0900929,110890.0,110880.0,0.1259771]
[1760219168853,0.11394301,110890.0,110880.0,0.94921318]
[1760219169251,0.11394301,110890.0,110880.0,1.50244926]
[1760219169654,0.11394301,110890.0,110880.0,0.94921318]
[1760219171156,0.02385011,110890.0,110880.0,1.50244926]
[1760219171353,0.02385011,110890.0,110880.0,1.86324926]
[1760219171653,0.02385011,110890.0,110880.0,2.26324926]
[1760219172356,0.0900875,110900.0,110890.0,0.125969]
[1760219172652,0.02383554,110900.0,110890.0,1.27914839]
[1760219172957,0.53170817,110930.0,110910.0,0.1259527]
[1760219173156,0.4508611,110930.0,110920.0,0.67918068]
[1760219173454,0.4508611,110930.0,110920.0,0.3459446]
[1760219173655,0.44164707,110940.0,110930.0,0.1259365]
[1760219173849,0.17028607,110970.0,110950.0,0.03588]
[1760219173850,0.53167767,110970.0,110950.0,0.03588]
[1760219174049,0.44164707,110980.0,110960.0,0.1259121]
[1760219174252,0.03232686,110980.0,110970.0,0.61713035]
[1760219174550,0.48313506,110990.0,110980.0,0.03588]
[1760219174751,0.03232686,110990.0,110980.0,1.19792225]
[1760219174956,0.4507976,111010.0,111000.0,0.03588]
[1760219175149,0.4507976,111010.0,111000.0,0.29588]
[1760219175352,0.94202395,111010.0,111000.0,0.27309]
[1760219175556,0.0899997,111000.0,110990.0,0.01309]
[1760219175752,0.94202605,111000.0,110990.0,0.27309]
[1760219175954,1.34202605,111000.0,110990.0,0.27309]
[1760219176256,0.8507997,111000.0,110990.0,0.27309]
[1760219176460,1.34202605,111000.0,110990.0,0.27309]
[1760219176650,1.34302605,111000.0,110990.0,0.26]
[1760219177355,1.44294454,111000.0,110990.0,0.26]
[1760219177554,1.46693998,111000.0,110990.0,0.26]
[1760219177753,0.95271819,111000.0,110990.0,0.26]
[1760219177951,0.95271819,111000.0,110990.0,0.27309]
[1760219178147,0.95171819,111000.0,110990.0,0.27309]
[1760219178350,0.55271819,111000.0,110990.0,0.27309]
[1760219178556,0.4527997,111000.0,110990.0,0.29588]
[1760219179248,0.8527997,111000.0,110990.0,0.29588]
[1760219179461,0.4527997,111000.0,110990.0,0.29588]
[1760219179661,0.4517997,111000.0,110990.0,0.29588]
[1760219179859,0.4527997,111000.0,110990.0,0.29588]
[1760219180060,0.4517997,111000.0,110990.0,0.29588]
[1760219181166,0.0899997,111000.0,110990.0,0.29588]
[1760219181460,0.4517997,111000.0,110990.0,0.29588]
[1760219184465,0.4517997,111000.0,110990.0,1.1466878]
[1760219184466,0.001,111000.0,110990.0,1.1466878]
[1760219186669,0.3608,111020.0,111010.0,0.03588]
[1760219186874,0.3608,111030.0,111020.0,0.1258635]
[1760219187173,0.4507754,111030.0,111020.0,0.3858635]
[1760219187563,0.4507754,111030.0,111020.0,0.29588]
[1760219187770,0.0899754,111030.0,111020.0,0.65668]
[1760219188069,0.0909754,111030.0,111020.0,0.65668]
[1760219188273,0.001,111030.0,111020.0,0.75556685]
[1760219188774,0.003,111030.0,111020.0,0.75556685]
[1760219189073,0.003,111030.0,111020.0,1.66978864]
[1760219189475,0.003,111030.0,111020.0,1.26978864]
[1760219189671,0.0929753,111030.0,111020.0,1.26978864]
[1760219190475,0.003,111030.0,111020.0,1.26978864]
[1760219191573,0.003,111030.0,111020.0,1.66978864]
[1760219191874,0.003,111030.0,111020.0,1.15556685]
[1760219192079,0.003,111030.0,111020.0,1.66978864]
[1760219193574,0.001,111030.0,111020.0,1.66978864]
[1760219193780,0.0899602,111050.0,111040.0,0.03462]
[1760219193979,0.0899602,111050.0,111040.0,0.26462]
[1760219194278,0.4507602,111050.0,111040.0,0.26462]
[1760219194974,0.4547602,111050.0,111040.0,0.26462]
[1760219196179,0.4547591,111050.0,111040.0,0.26462]
[1760219196771,0.4507591,111050.0,111040.0,0.26462]
[1760219198981,0.0899591,111050.0,111040.0,0.26462]
[1760219199577,0.0899591,111050.0,111040.0,0.7547905]
[1760219200875,0.0899591,111050.0,111040.0,0.26462]
[1760219201283,0.4899591,111050.0,111040.0,0.26462]
[1760219201584,0.8507591,111050.0,111040.0,0.26462]
[1760219202277,0.9409296,111050.0,111040.0,0.26462]
[1760219203084,0.9409296,111050.0,111040.0,0.24277]
[1760219203284,0.9409296,111050.0,111040.0,0.26387]
[1760219203779,0.4507591,111050.0,111040.0,0.24277]
[1760219204084,0.4507591,111050.0,111040.0,0.26387]
[1760219204483,0.47270753,111050.0,111040.0,0.26387]
[1760219207182,0.96287803,111050.0,111040.0,0.26387]
[1760219208683,0.60207803,111050.0,111040.0,0.26387]
[1760219208887,1.32367803,111050.0,111040.0,0.26387]
[1760219209187,1.32367803,111050.0,111040.0,0.24277]
[1760219209983,1.32367803,111050.0,111040.0,0.26387]
[1760219210286,1.32367803,111050.0,111040.0,0.24277]
[1760219211380,0.83350753,111050.0,111040.0,0.24277]
[1760219211585,1.32367803,111050.0,111040.0,0.26387]
[1760219215487,1.32367803,111050.0,111040.0,0.24277]
[1760219216085,1.35600489,111050.0,111040.0,0.24277]
[1760219216485,1.35600489,111050.0,111040.0,0.26387]
[1760219217991,1.35600489,111050.0,111040.0,0.24277]
[1760219218190,1.35600489,111050.0,111040.0,0.26387]
[1760219219490,1.35600489,111050.0,111040.0,0.24277]
[1760219219690,1.35600489,111050.0,111040.0,0.26387]
[1760219223498,1.35600489,111050.0,111040.0,0.24277]
[1760219224596,1.35600489,111050.0,111040.0,0.26465]
[1760219224796,1.35600489,111050.0,111040.0,0.24277]
[1760219227300,1.4045251,111050.0,111040.0,0.24277]
[1760219228301,1.35600489,111050.0,111040.0,0.24277]
[1760219229301,1.50444359,111050.0,111040.0,0.24277]
[1760219230103,1.45592338,111050.0,111040.0,0.24277]
[1760219231700,0.96575288,111050.0,111040.0,0.24277]
[1760219231899,1.45592338,111050.0,111040.0,0.24277]
[1760219232100,1.85592338,111050.0,111040.0,0.23]
[1760219232800,1.90444359,111050.0,111040.0,0.23]
[1760219233303,1.85592338,111050.0,111040.0,0.23]
[1760219235398,1.91753363,111050.0,111040.0,0.23]
[1760219236703,1.36575288,111050.0,111040.0,0.23]
[1760219236908,1.91753363,111050.0,111040.0,0.23]
[1760219238208,1.88520677,111050.0,111040.0,0.23]
[1760219241210,1.91753363,111050.0,111040.0,0.23]
[1760219243510,1.88520677,111050.0,111040.0,0.23]
[1760219244410,1.33342602,111050.0,111040.0,0.23]
[1760219244712,1.88520677,111050.0,111040.0,0.23]
[1760219245009,1.33342602,111050.0,111040.0,0.23]
[1760219245203,1.88520677,111050.0,111040.0,0.24373]
[1760219245400,1.88520677,111050.0,111040.0,0.23]
[1760219247914,1.88620677,111050.0,111040.0,0.23]
[1760219248104,1.88720677,111050.0,111040.0,0.23]
[1760219248308,1.91953363,111050.0,111040.0,0.23]
[1760219250911,1.88720677,111050.0,111040.0,0.23]
[1760219252020,1.91953363,111050.0,111040.0,0.23]
[1760219253218,1.920191,111050.0,111040.0,0.23]
[1760219258514,1.36841025,111050.0,111040.0,0.23]
[1760219258720,1.920191,111050.0,111040.0,0.23]
[1760219259720,1.88786414,111050.0,111040.0,0.23]
[1760219261210,1.920191,111050.0,111040.0,0.23]
[1760219262320,1.520191,111050.0,111040.0,0.23]
[1760219265722,2.07197175,111050.0,111040.0,0.23]
[1760219265920,1.35037175,111050.0,111040.0,0.23]
[1760219266121,2.07197175,111050.0,111040.0,0.23]
[1760219266324,1.520191,111050.0,111040.0,0.23]
[1760219267621,2.07197175,111050.0,111040.0,0.23]
[1760219268123,1.520191,111050.0,111040.0,0.23]
[1760219269524,2.07197175,111050.0,111040.0,0.23]
[1760219271528,0.96841025,111050.0,111040.0,0.23]
[1760219271728,2.07197175,111050.0,111040.0,0.23]
[1760219272528,1.520191,111050.0,111040.0,0.23]
[1760219273427,1.56871121,111050.0,111040.0,0.23]
[1760219274630,1.520191,111050.0,111040.0,0.23]
[1760219280134,0.96841025,111050.0,111040.0,0.23]
[1760219280334,1.56871121,111050.0,111040.0,0.24379]
[1760219280531,1.56871121,111050.0,111040.0,0.23]
[1760219281127,1.520191,111050.0,111040.0,0.23]
[1760219281435,1.520191,111050.0,111040.0,0.24379]
[1760219282536,1.520191,111050.0,111040.0,0.23]
[1760219285936,1.519191,111050.0,111040.0,0.23]
[1760219286134,1.520191,111050.0,111040.0,0.23]
[1760219287630,1.519191,111050.0,111040.0,0.23]
[1760219287941,1.520191,111050.0,111040.0,0.23]
[1760219289746,1.520191,111050.0,111040.0,0.24314]
[1760219296554,1.56871121,111050.0,111040.0,0.24314]
[1760219297453,1.42565941,111050.0,111040.0,0.24314]
[1760219298252,1.42565941,111050.0,111040.0,0.23]